fUSD/lending_fUSD_20260107
["ID","MTS","AMOUNT","RATE_DAILY","PERIOD"]
[400676718,1767777068019,-151.0,0.0003863,120]
[400676720,1767777068031,-500.0,0.0003863,14]
[400676722,1767777068040,-151.0,0.0003863,120]
[400676724,1767777068050,-1055.25,0.0003863,14]
[400676726,1767777068060,-500.0,0.0003863,14]
[400676728,1767777068071,-890.9,0.0003863,14]
[400676730,1767777068082,-1943.44,0.0003863,14]
[400676732,1767777068095,-151.0,0.0003863,120]
[400676734,1767777068105,-500.0,0.0003863,14]
[400676736,1767777068116,-525.72357,0.0003863,120]
[400676738,1767777068126,-151.0,0.0003863,120]
[400676740,1767777068136,-500.0,0.0003863,14]
[400676742,1767777068147,-500.0,0.0003863,14]
[400676744,1767777068157,-500.0,0.0003863,14]
[400676746,1767777068167,-525.72357,0.0003863,120]
[400676748,1767777068177,-1048.51,0.0003863,14]
[400676750,1767777068187,-1359.44,0.0003863,14]
[400676752,1767777068197,-500.0,0.0003863,14]
[400676755,1767777068206,-525.72357,0.0003863,120]
[400676757,1767777068217,-194.548252,0.0003863,120]
[400676759,1767777068227,-1171.53,0.0003863,14]
[400676761,1767777068237,-525.72357,0.0003863,120]
[400676763,1767777068247,-500.0,0.0003863,14]
[400676765,1767777068256,-194.548252,0.0003863,120]
[400676767,1767777068266,-2779.68,0.0003863,14]
[400676769,1767777068276,-2497.76,0.0003863,14]
[400676771,1767777068286,-194.548252,0.0003863,120]
[400676773,1767777068296,-500.0,0.0003863,14]
[400676775,1767777068306,-194.548252,0.0003863,120]
[400676777,1767777068316,-2118.512815,0.0003863,120]
[400676779,1767777068325,-500.0,0.0003863,14]
[400676781,1767777068336,-570.01867587,0.0003863,14]
[400676783,1767777068347,-214.124908,0.0003863,120]
[400676785,1767777068356,-2118.512815,0.0003863,120]
[400676787,1767777068366,-263.20645,0.0003863,120]
[400676789,1767777068376,-2118.512815,0.0003863,120]
[400676791,1767777068386,-214.124908,0.0003863,120]
[400676793,1767777068396,-2118.512815,0.0003863,120]
[400676795,1767777068406,-1254.59,0.0003863,14]
[400676798,1767777068416,-214.124908,0.0003863,120]
[400676800,1767777068428,-500.0,0.0003863,14]
[400676802,1767777068438,-631.82929911,0.0003863,14]
[400676804,1767777068447,-1291.22,0.0003863,14]
[400676806,1767777068457,-500.0,0.0003863,14]
[400676808,1767777068467,-1081.89,0.0003863,14]
[400676810,1767777068477,-629.75,0.0003863,14]
[400676812,1767777068487,-500.0,0.0003863,14]
[400676814,1767777068497,-214.124908,0.0003863,120]
[400676816,1767777068506,-552.5319581,0.0003863,14]
[400676818,1767777068516,-157.63774912,0.0003863,14]
[400676820,1767777068525,-543.39,0.0003863,14]
[400676822,1767777068535,-500.0,0.0003863,14]
[400676824,1767777068544,-500.0,0.0003863,14]
[400676826,1767777068554,-2821.3,0.0003863,14]
[400676828,1767777068564,-500.0,0.0003863,14]
[400676830,1767777068574,-500.0,0.0003863,14]
[400676832,1767777068585,-500.0,0.0003863,14]
[400676834,1767777068594,-439.0383774,0.0003863,14]
[400677022,1767777070582,-383.97867549,0.00038356,14]
[400677126,1767777072088,-253.88923684,0.00016306,2]
[400677169,1767777072499,-907.79676316,0.00016306,2]
[400677171,1767777072508,-116.02132451,0.00038356,14]
[400677173,1767777072518,-577.73364025,0.00038356,14]
[400677175,1767777072527,-502.32,0.00038356,14]
[400677177,1767777072537,-60.9616226,0.0003863,14]
[400677179,1767777072546,-500.0,0.0003863,14]
[400677181,1767777072555,-3872.11,0.0003863,14]
[400677183,1767777072564,-45.11664948,0.0003863,14]
[400677187,1767777072587,-500.0,0.00038356,14]
[400677189,1767777072596,-18.88705051,0.00038356,3]
[400678939,1767777224851,510.06,0.00032877,120]
[400678976,1767777336123,-500.0,0.00016206,2]
[400678977,1767777337650,-300.0,0.00016206,2]
[400678978,1767777340261,500.0,0.00016185,2]
[400678979,1767777341915,-243.52532624,0.00016206,2]
[400679073,1767777441027,-240.47638426,0.00016206,2]
[400679091,1767777490935,-10737.47337502,0.00016206,2]
[400679092,1767777490962,-1200.0,0.00016285,2]
[400679093,1767777490987,-300.0,0.00016285,2]
[400679094,1767777491015,-1000000.0,0.00016306,2]
[400679095,1767777491038,-1000.0,0.00016306,2]
[400679096,1767777491062,-500.0,0.00016405,2]
[400679097,1767777491087,-500.0,0.00016438,2]
[400679098,1767777491113,-500.0,0.00016438,2]
[400679099,1767777491139,-500.0,0.00016438,2]
[400679100,1767777491164,-500.0,0.00016438,2]
[400679101,1767777491188,-500.0,0.00016438,2]
[400679102,1767777491216,-500.0,0.00016438,2]
[400679103,1767777491241,-500.0,0.00016438,2]
[400679104,1767777491266,-500.0,0.00016438,2]
[400679105,1767777491292,-500.0,0.00016438,2]
[400679106,1767777491318,-500.0,0.00016438,2]
[400679107,1767777491344,-500.0,0.00016438,2]
[400679108,1767777491368,-500.0,0.00016438,2]
[400679109,1767777491395,-500.0,0.00016438,2]
[400679110,1767777491420,-267.37418846,0.00016438,2]
[400679111,1767777491446,-500.0,0.00016438,2]
[400679112,1767777491470,-500.0,0.00016605,2]
[400679113,1767777491495,-500.0,0.00016605,2]
[400679114,1767777491519,-500.0,0.00016605,2]
[400679115,1767777491541,-511.9256593,0.00016605,2]
[400679149,1767777621034,-208.2668177,0.00016196,2]
[400679150,1767777623822,-470.12465888,0.00016196,2]
[400679151,1767777630315,-296.97286097,0.00016196,2]
[400679152,1767777631863,-318.14903129,0.00016196,2]
[400679153,1767777632389,678.391476,0.00016115,2]
[400679154,1767777637846,-151.29621885,0.00016196,2]
[400679155,1767777639459,-531.59191741,0.00016196,2]
[400679158,1767777644391,-3823.3184949,0.00016196,2]
[400679159,1767777644677,-4200.29,0.00016196,2]
[400679160,1767777644935,-1599.43,0.00016196,2]
[400679162,1767777693219,732.719,0.00015882,2]
[400679184,1767777948594,332.5790642,0.0003287,120]
[400679206,1767778087524,-164.77834246,0.00016199,2]
[400679207,1767778089113,-135.22165754,0.00016199,2]
[400679208,1767778089146,-305.75969384,0.000162,2]
[400679209,1767778092757,-212.8727741,0.00016199,2]
[400679225,1767778120789,293.07450082,0.00017173,120]
[400679230,1767778146131,-37.1272259,0.00016199,2]
[400679231,1767778146153,-2194.24030616,0.000162,2]
[400679232,1767778146175,-151.0,0.00016203,2]
[400679233,1767778146196,-300.0,0.00016204,2]
[400679234,1767778146220,-1200.0,0.00016204,2]
[400679235,1767778146241,-1400.54641871,0.00016204,2]
[400679236,1767778146261,-75.85404383,0.00016205,2]
[400679249,1767778162612,826.854,0.00032877,120]
[400679285,1767778231775,-151.0,0.00016203,2]
[400679286,1767778231786,-398.90444418,0.00016204,2]
[400679287,1767778231806,-801.09555582,0.00016204,2]
[400679288,1767778231815,-300.0,0.00016204,2]
[400679289,1767778231825,-138.84371792,0.00016205,2]
[400679290,1767778231835,-402.75829777,0.00016205,2]
[400679291,1767778231844,-61.30777921,0.00016205,2]
[400679292,1767778231856,-253.01774192,0.00016205,2]
[400679293,1767778231865,-550.0,0.00016205,2]
[400679294,1767778231875,-312.48225808,0.00016205,2]
[400679295,1767778231886,-13381.33631615,0.00016205,2]
[400679296,1767778231896,-273.90631056,0.00016205,2]
[400679297,1767778231905,-260.93323382,0.00016205,2]
[400679298,1767778231915,-57945.11345229,0.00016206,2]
[400679300,1767778231925,-20181.01025945,0.00016206,2]
[400679301,1767778237949,-1036.00709181,0.00016206,2]
[400679330,1767778238305,-920837.86919645,0.00016206,2]
[400679332,1767778238316,-500.0,0.00016305,2]
[400679334,1767778238326,-500.0,0.00016305,2]
[400679336,1767778238336,-500.0,0.00016305,2]
[400679338,1767778238346,-500.0,0.00016305,2]
[400679340,1767778238356,-588.78227506,0.00016305,2]
[400679342,1767778238366,-500.0,0.00016305,2]
[400679344,1767778238376,-500.0,0.00016305,2]
[400679346,1767778238386,-500.0,0.00016305,2]
[400679348,1767778238396,-500.0,0.00016305,2]
[400679350,1767778238406,-600.92295159,0.00016305,2]
[400679352,1767778238416,-500.0,0.00016305,2]
[400679354,1767778238427,-500.0,0.00016305,2]
[400679356,1767778238436,-500.0,0.00016305,2]
[400679358,1767778238446,-500.0,0.00016305,2]
[400679359,1767778238456,-6341.7942398,0.00016305,2]
[400679362,1767778238467,-13693.81857419,0.00016393,2]
[400679364,1767778238480,-500.0,0.00016438,2]
[400679365,1767778238490,-500.0,0.00016438,2]
[400679367,1767778238499,-500.0,0.00016438,2]
[400679369,1767778238510,-500.0,0.00016438,2]
[400679371,1767778238519,-500.0,0.00016438,2]
[400679373,1767778238529,-476.73741885,0.00016438,2]
[400679375,1767778238539,-165.24,0.0001644,2]
[400679377,1767778238550,-8875.6910312,0.00016445,2]
[400679379,1767778238560,-13693.81857419,0.00016582,2]
[400679381,1767778238570,-98189.3144801,0.00016586,2]
[400679383,1767778238584,-1000.0,0.00016707,2]
[400679385,1767778238594,-5970.93,0.0001671,2]
[400679387,1767778238605,-165.33,0.00016712,2]
[400679389,1767778238615,-13693.81857419,0.0001677,2]
[400679391,1767778238626,-151.0,0.0001717,2]
[400679393,1767778238636,-151.0,0.00017185,2]
[400679395,1767778238648,-402.75829776,0.0001728,2]
[400679397,1767778238658,-220.0,0.00017323,2]
[400679399,1767778238668,-505.38555235,0.00017594,2]
[400679401,1767778238679,-501.26115653,0.00017594,2]
[400679403,1767778238690,-500.0,0.00017594,2]
[400679405,1767778238700,-500.0,0.00017594,2]
[400679407,1767778238710,-500.0,0.00017594,2]
[400679409,1767778238721,-500.0,0.00017594,2]
[400679411,1767778238731,-500.0,0.00017594,2]
[400679413,1767778238742,-500.0,0.00017594,2]
[400679415,1767778238753,-500.0,0.00017594,2]
[400679417,1767778238764,-500.0,0.00017594,2]
[400679419,1767778238773,-500.0,0.00017594,2]
[400679421,1767778238783,-324.19847389,0.00017594,2]
[400679423,1767778238795,-500.0,0.00017594,2]
[400679425,1767778238805,-519.44971303,0.00017594,2]
[400679427,1767778238816,-500.0,0.00017594,2]
[400679429,1767778238826,-500.0,0.00017594,2]
[400679431,1767778238836,-1680.0,0.00017801,2]
[400679433,1767778238847,-2500.0,0.00017819,2]
[400679435,1767778238857,-195.0,0.00017819,2]
[400679437,1767778238867,-193.0,0.00017819,2]
[400679439,1767778238877,-300.0,0.00017819,2]
[400679441,1767778238887,-250.0,0.00017819,2]
[400679443,1767778238898,-600.0,0.00017819,2]
[400679445,1767778238908,-600.0,0.00017819,2]
[400679447,1767778238917,-600.0,0.00017819,2]
[400679449,1767778238927,-600.0,0.00017819,2]
[400679451,1767778238938,-376.22104568,0.00017819,2]
[400679453,1767778238948,-5000.0,0.00017819,2]
[400679455,1767778238958,-1969.66451728,0.00017819,2]
[400679457,1767778238973,-632.711033,0.000179,2]
[400679459,1767778238984,-2504.51220069,0.000179,2]
[400679461,1767778238995,-724.50586441,0.000179,2]
[400679463,1767778239005,-201.99613239,0.000179,3]
[400679466,1767778239016,-5005.76233134,0.000179,2]
[400679468,1767778239027,-26860.13664466,0.00017924,2]
[400679470,1767778239040,-310.0,0.00017973,2]
[400679471,1767778239051,-626.80784924,0.0001799,2]
[400679474,1767778239062,-626.80784924,0.0001799,2]
[400679476,1767778239073,-626.80784924,0.0001799,2]
[400679478,1767778239084,-151.0,0.00017997,2]
[400679480,1767778239095,-300.0,0.00017999,2]
[400679482,1767778239106,-651.03116604,0.00017999,2]
[400679484,1767778239117,-300.0,0.00017999,2]
[400679486,1767778239127,-666.0,0.00017999,2]
[400679488,1767778239138,-300.0,0.00017999,2]
[400679490,1767778239150,-666.0,0.00017999,2]
[400679492,1767778239161,-1198965.5012789,0.00018,2]
[400679494,1767778239175,-4069910.17859385,0.00018,2]
[400679574,1767778240204,-7909.87465402,0.00018,2]
[400679576,1767778240217,-523.34287504,0.00018,2]
[400679578,1767778240229,-2993.80498,0.00018,2]
[400679615,1767778240585,-1.7e-07,0.00018,2]
[400679985,1767778244229,-1099.0,0.00016958,2]
[400679988,1767778244241,-4521.05176533,0.00016958,2]
[400680154,1767778245835,-7711.41354067,0.00016958,2]
[400680392,1767778248446,10000.01,0.00016106,2]
[400680395,1767778248471,10000.01,0.00016106,2]
[400680399,1767778248503,10000.01,0.00016106,2]
[400680403,1767778248530,10000.01,0.00016106,2]
[400680406,1767778248556,10000.01,0.00016106,2]
[400680410,1767778248583,10000.01,0.00016106,2]
[400680413,1767778248608,10000.01,0.00016106,2]
[400680417,1767778248633,10000.01,0.00016106,2]
[400680421,1767778248658,10000.01,0.00016106,2]
[400680424,1767778248684,10000.01,0.00016106,2]
[400680600,1767778250502,-635.07253898,0.00016106,2]
[400681138,1767778255920,-163.12609511,0.00016106,2]
[400681619,1767778260862,-179.07657441,0.00016106,2]
[400681782,1767778262957,-155.93683141,0.00016105,2]
[400682449,1767778269919,-144.06316859,0.00016105,2]
[400682453,1767778269945,-321.13614272,0.00016106,2]
[400682570,1767778271105,-1151.88952264,0.00016106,2]
[400682825,1767778273661,-219.65731484,0.00016106,2]
[400683009,1767778275583,-963.338813,0.00016024,2]
[400683013,1767778275609,-36.661187,0.00016106,2]
[400683160,1767778277132,-329.17058229,0.00016106,2]
[400683351,1767778279302,-435.80607334,0.00016106,2]
[400683516,1767778285479,-301.68843346,0.00016106,2]
[400683521,1767778287623,-195.0,0.00016106,2]
[400683522,1767778289292,-300.0,0.00016106,2]
[400683523,1767778292267,-490.16894231,0.00016106,2]
[400683524,1767778293190,1037.162,0.00015784,2]
[400683525,1767778293318,164.13,0.00015784,2]
[400683535,1767778294687,-176.98093467,0.00016106,2]
[400683536,1767778295754,-183.94017844,0.00016106,2]
[400683537,1767778297436,-1085.75189166,0.00016106,2]
[400683538,1767778298484,500.0,0.00032877,120]
[400683539,1767778300100,-365.24507323,0.00016106,2]
[400683540,1767778302168,-154.09944903,0.00016106,2]
[400683541,1767778303422,-151.76494787,0.00016106,2]
[400683542,1767778305112,-258.05181576,0.00016106,2]
[400683543,1767778309360,-162.8541716,0.00016106,2]
[400683544,1767778310957,-321.69561579,0.00016106,2]
[400683546,1767778313000,300.0,0.00032877,120]
[400683564,1767778317800,-156.21597287,0.00016106,2]
[400683565,1767778319907,-249.00116379,0.00016106,2]
[400683566,1767778324604,383.2,0.00032877,120]
[400683567,1767778324903,-313.22299325,0.00016106,2]
[400683569,1767778325880,-387.81249801,0.00016106,2]
[400683571,1767778329383,-303.37599486,0.00016106,2]
[400683572,1767778332408,-166.21520358,0.00016106,2]
[400683573,1767778335215,-203.86,0.00016106,2]
[400683574,1767778336764,-161.34487945,0.00016106,2]
[400683575,1767778338262,-358.76470126,0.00016105,5]
[400683578,1767778340292,-237.95861467,0.00016105,5]
[400683579,1767778340317,-35.96847176,0.00016106,2]
[400683583,1767778345763,-300.0,0.00016106,2]
[400683584,1767778346170,153.28688414,0.00016006,2]
[400683585,1767778348447,3933.211926,0.00016025,2]
[400683586,1767778349129,4712.21918986,0.00016006,2]
[400683587,1767778349157,5541.10759007,0.00016006,2]
[400683588,1767778349480,-258.65582907,0.00016106,2]
[400683589,1767778351099,-321.17076733,0.00016106,2]
[400683590,1767778353535,203.49411235,0.00016006,2]
[400683593,1767778359781,-258.94882433,0.00016106,2]
[400683594,1767778361336,-222.97836515,0.00016106,2]
[400683595,1767778363502,-197.23840629,0.00016106,2]
[400683596,1767778367204,-228.98084791,0.00016106,2]
[400683597,1767778368800,-413.403073,0.00016106,2]
[400683599,1767778372595,-280.34989237,0.00016106,2]
[400683600,1767778375800,-341.30165096,0.00016106,2]
[400683601,1767778381152,-198.88986117,0.00016106,2]
[400683603,1767778383862,-199.98509773,0.00016105,2]
[400683605,1767778389324,-100.01490227,0.00016105,2]
[400683606,1767778389345,-58.32383578,0.00016105,2]
[400683607,1767778391644,-202.37378735,0.00016105,2]
[400683608,1767778396564,-289.30237687,0.00016105,2]
[400683609,1767778396592,-46.73261433,0.00016105,2]
[400683610,1767778399126,-174.26738567,0.00016105,2]
[400683611,1767778399152,-201.90060461,0.00016106,2]
[400683612,1767778400152,-250.44480641,0.00016106,2]
[400683613,1767778406202,-203.13612012,0.00016105,2]
[400683614,1767778408313,-277.23348557,0.00016105,2]
[400683615,1767778412369,-19.63039431,0.00016105,2]
[400683616,1767778412394,-297.97604525,0.00016105,2]
[400683617,1767778413958,-202.02395475,0.00016105,2]
[400683618,1767778413983,-53.56698051,0.00016105,2]
[400683619,1767778415410,-225.43491,0.00016105,2]
[400683620,1767778418715,-220.99810949,0.00016105,2]
[400683621,1767778418745,-23.15770799,0.00016105,2]
[400683622,1767778421098,-174.42241913,0.00016105,2]
[400683623,1767778423104,-294.83961812,0.00016105,2]
[400683624,1767778424058,-7.58025476,0.00016105,2]
[400683625,1767778424084,-309.40952292,0.00016105,2]
[400683626,1767778428804,-166.67037824,0.00016105,2]
[400683627,1767778430348,-23.92009884,0.00016105,2]
[400683628,1767778430372,-157.570551,0.00016105,2]
[400683629,1767778432919,-288.40816029,0.00016105,2]
[400683631,1767778437120,-54.02128871,0.00016105,2]
[400683632,1767778437146,-262.37292343,0.00016105,2]
[400683633,1767778438587,-237.62707657,0.00016105,2]
[400683634,1767778438615,-4.82997356,0.00016105,2]
[400683635,1767778440812,-495.17002644,0.00016105,2]
[400683636,1767778440838,-235.66563197,0.00016105,2]
[400683639,1767778445607,-181.27526242,0.00016104,2]
[400683640,1767778448133,-118.72473758,0.00016104,2]
[400683641,1767778448160,-213.14431192,0.00016105,2]
[400683642,1767778453048,-51.19005611,0.00016105,2]
[400683643,1767778453074,-421.75076159,0.00016105,2]
[400683644,1767778454116,-78.24923841,0.00016105,2]
[400683645,1767778454142,-189.13364541,0.00016105,2]
[400683646,1767778455593,-194.90053023,0.00016105,2]
[400683648,1767778461888,-115.96582436,0.00016105,2]
[400683649,1767778461915,-208.72391568,0.00016105,2]
[400683651,1767778465607,-168.42467707,0.00016105,2]
[400683652,1767778469202,-122.85140725,0.00016105,2]
[400683653,1767778469230,-87.40865652,0.00016105,2]
[400683656,1767778477616,-214.90210531,0.00016105,2]
[400683657,1767778480331,-189.4833,0.00016105,2]
[400683659,1767778484215,-8.20593817,0.00016105,2]
[400683660,1767778484242,-282.78925076,0.00016105,2]
[400683661,1767778484268,-49.78904066,0.00016105,2]
[400683662,1767778486435,-287.17334878,0.00016105,2]
[400683663,1767778488099,-163.03761056,0.00016105,2]
[400683664,1767778488128,-87.5127422,0.00016105,2]
[400683665,1767778489673,153.28688412,0.00016006,2]
[400683666,1767778492705,-347.09886432,0.00016105,2]
[400683667,1767778494358,-65.38839348,0.00016105,2]
[400683668,1767778494389,-178.5473684,0.00016105,2]
[400683669,1767778498224,-321.4526316,0.00016105,2]
[400683670,1767778498250,-23.59928486,0.00016106,2]
[400683671,1767778500892,-319.08657038,0.00016106,2]
[400683672,1767778504524,-196.62354232,0.00016105,2]
[400683673,1767778506172,1483.98,8.197e-05,2]
[400683676,1767778506377,1483.98,8.629e-05,2]
[400683677,1767778507317,1134.16141346,9.06e-05,2]
[400683678,1767778507341,349.81858654,9.06e-05,2]
[400683679,1767778507422,1483.98,9.492e-05,2]
[400683680,1767778507614,1483.98,9.923e-05,2]
[400683681,1767778507705,1483.98,0.00010355,2]
[400683682,1767778507791,1483.98,0.00010786,2]
[400683683,1767778507882,1483.98,0.00011218,2]
[400683684,1767778507949,1483.98,0.00011649,2]
[400683685,1767778508009,746.31141346,0.0001208,2]
[400683686,1767778508035,737.66858654,0.0001208,2]
[400683687,1767778508211,1483.98,0.00012512,2]
[400683688,1767778508407,1483.98,0.00012943,2]
[400683689,1767778508618,1483.98,0.00013375,2]
[400683690,1767778508808,1483.98,0.00013806,2]
[400683691,1767778509066,1483.98,0.00014238,2]
[400683692,1767778509224,1483.98,0.00014669,2]
[400683693,1767778509432,358.46141346,0.00015101,2]
[400683694,1767778509454,1125.51858654,0.00015101,2]
[400683695,1767778509698,1483.98,0.00015532,2]
[400683696,1767778510053,1483.98,0.00015964,2]
[400683697,1767778511913,175.0,0.00031858,120]
[400683698,1767778512004,-103.37645768,0.00016105,2]
[400683699,1767778512029,-83.59942323,0.00016105,2]
[400683700,1767778516209,-1116.40057677,0.00016105,2]
[400683701,1767778517281,-358.99583138,0.00016106,2]
[400683702,1767778519493,-284.43320713,0.00016106,2]
[400683703,1767778519892,-321.45171819,0.00016105,2]
[400683704,1767778526831,-163.14635088,0.00016106,2]
[400683707,1767778542677,-587.80966481,0.00016105,2]
[400683709,1767778544310,-215.56679287,0.00016106,2]
[400683719,1767778549357,-300.0,0.00016106,2]
[400683721,1767778553076,-215.56679287,0.00016105,2]
[400683722,1767778553106,-95.44552879,0.00016106,2]
[400683723,1767778557576,-305.02621265,0.00016106,2]
[400683724,1767778557744,-4130.14852302,0.00016106,2]
[400683725,1767778557918,-10000.01,0.00016106,2]
[400683726,1767778558181,-10000.01,0.00016106,2]
[400683727,1767778558451,-10000.01,0.00016106,2]
[400683728,1767778558586,-10000.01,0.00016106,2]
[400683729,1767778560278,-175.88721697,0.00016106,2]
[400683730,1767778564714,-194.27885049,0.00016105,2]
[400683731,1767778566142,-105.72114951,0.00016105,2]
[400683732,1767778566172,-550.0,0.00016105,2]
[400683733,1767778566229,-8688.56770098,0.00016106,2]
[400683734,1767778566316,-10000.01,0.00016106,2]
[400683735,1767778566747,-543.53594528,0.00016106,2]
[400683736,1767778569266,-172.18448779,0.00016106,2]
[400683739,1767778576998,-241.65238321,0.00016105,2]
[400683740,1767778585741,-63.37382944,0.00016105,2]
[400683741,1767778585767,-113.08982727,0.00016105,2]
[400683742,1767778589717,-62.7973897,0.00016105,2]
[400683743,1767778589745,-206.74282152,0.00016106,2]
[400683744,1767778591179,-465.72577823,0.00016106,2]
[400683746,1767778597148,-321.61320066,0.00016006,2]
[400683747,1767778598701,-292.43511023,0.00016006,2]
[400683748,1767778600882,-362.62213385,0.00016006,2]
[400683749,1767778603453,-403.1375819,0.00016006,2]
[400683750,1767778606511,-223.4736911,0.00016006,2]
[400683751,1767778608377,-188.81615301,0.00016006,2]
[400683752,1767778613667,-236.53913856,0.00016006,2]
[400683753,1767778615538,-287.45422444,0.00016006,2]
[400683754,1767778617372,-300.0,0.00016006,2]
[400683759,1767778619531,-300.0,0.00016006,2]
[400683760,1767778621127,-494.45,0.00016006,2]
[400683761,1767778625108,-300.0,0.00016005,2]
[400683762,1767778625133,-200.0,0.00016006,2]
[400683764,1767778627748,-500.0,0.00016006,2]
[400683765,1767778631135,-500.0,0.00016006,2]
[400683766,1767778632587,-500.0,0.00016006,2]
[400683767,1767778637144,-500.0,0.00016006,2]
[400683768,1767778638814,-500.0,0.00016006,2]
[400683771,1767778645060,-500.0,0.00016006,2]
[400683772,1767778647823,-500.0,0.00016006,2]
[400683773,1767778649353,-500.0,0.00016006,2]
[400683775,1767778652491,-500.0,0.00016006,2]
[400683776,1767778653996,-500.0,0.00016006,2]
[400683777,1767778656554,-500.0,0.00016006,2]
[400683778,1767778660835,-500.0,0.00016006,2]
[400683779,1767778662971,-500.0,0.00016006,2]
[400683782,1767778667033,-500.0,0.00016006,2]
[400683783,1767778670354,-500.0,0.00016006,2]
[400683784,1767778672330,-500.0,0.00016006,2]
[400683786,1767778675042,-500.0,0.00016006,2]
[400683787,1767778676618,-351.64304486,0.00016006,2]
[400683788,1767778676640,-148.35695514,0.00016006,2]
[400683789,1767778678498,-4.92992898,0.00016006,2]
[400683790,1767778678522,-495.07007102,0.00016006,2]
[400683793,1767778686308,-500.0,0.00016,2]
[400683805,1767778746090,-214.88273804,0.00016006,2]
[400683806,1767778746113,-285.11726196,0.00016031,2]
[400683807,1767778747582,-500.0,0.00016031,2]
[400683808,1767778749134,-500.0,0.00016031,2]
[400683809,1767778751394,-500.0,0.00016031,2]
[400683818,1767778756629,-500.0,0.00016031,2]
[400683825,1767778807779,175.0,0.00032495,120]
[400683826,1767778817122,-177.00021117,0.00016031,2]
[400683838,1767778836016,-200.0,0.00016,2]
[400683839,1767778836042,-37.88252687,0.00016031,2]
[400683840,1767778836069,-262.11747313,0.00016031,2]
[400683843,1767778841629,-21.88252687,0.00016031,2]
[400683844,1767778841661,-250.0,0.00016056,2]
[400683845,1767778841693,-550.0,0.00016105,2]
[400683847,1767778841727,-300.0,0.00016105,2]
[400683848,1767778841758,-1200.0,0.00016105,2]
[400683849,1767778841788,-500.0,0.00016105,2]
[400683850,1767778841821,-610.48168681,0.00016105,2]
[400683852,1767778842294,-3135.28157264,0.00016106,2]
[400683853,1767778842443,-10000.01,0.00016106,2]
[400683854,1767778842872,-10000.01,0.00016096,2]
[400683855,1767778843207,-1078.23,0.00016096,2]
[400683856,1767778843250,-7843.55,0.00016096,2]
[400683857,1767778843547,-3234.69,0.00016096,2]
[400683858,1767778843589,-3530.63,0.00016106,2]
[400683859,1767778843911,-10000.01,0.00016106,2]
[400683860,1767778844265,-10000.01,0.00016106,2]
[400683861,1767778844576,-10000.01,0.00016106,2]
[400683862,1767778844971,-10000.01,0.00016106,2]
[400683863,1767778866684,-500.0,0.00016006,2]
[400683864,1767778870949,-500.0,0.00016006,2]
[400683865,1767778871958,-615.58130151,0.00016006,2]
[400683866,1767778871991,-8768.84739698,0.00016006,2]
[400683867,1767778872366,-2500.0,0.00016006,2]
[400683868,1767778872399,-300.0,0.00016105,2]
[400683869,1767778872475,-4400.01,0.00016106,2]
[400683870,1767778872549,-10000.01,0.00016106,2]
[400683871,1767778872798,-10000.01,0.00016106,2]
[400683872,1767778874052,-10000.01,0.00016106,2]
[400683873,1767778874098,-10000.01,0.00016106,2]
[400683874,1767778874129,-10000.01,0.00016106,2]
[400683875,1767778896734,-500.0,0.00015784,2]
[400683878,1767778901409,-500.0,0.00015784,2]
[400683879,1767778902986,-398.294,0.00015784,2]
[400683880,1767778903009,-101.706,0.00015784,2]
[400683884,1767778910997,-62.589,0.00015784,2]
[400683885,1767778911021,-437.411,0.00016006,2]
[400683891,1767778913682,-183.79770791,0.00016006,2]
[400683893,1767778925815,5862.167632,0.00016025,2]
[400683895,1767778960664,298.4562,0.00015906,2]